bitfinex-derivatives/quotes_ETHF0:USTF0_20210401
["timestamp","ask_amount","ask_price","bid_price","bid_amount"]
[1617293101405,30.0,1947.4,1946.4,3.87145]
[1617293101609,14.8253,1947.8,1946.4,2.83045]
[1617293101809,14.5053,1947.9,1946.6,72.1162]
[1617293102210,14.5053,1947.9,1946.7,2.0]
[1617293102413,14.5053,1947.9,1947.7,2.90695]
[1617293103013,1.1,1949.0,1947.7,2.81025]
[1617293103211,30.0,1949.2,1947.8,73.8062]
[1617293103812,30.0,1949.2,1947.7,2.81025]
[1617293104013,30.0,1949.2,1947.7,2.03545]
[1617293104412,2.0,1949.1,1948.1,2.90695]
[1617293104614,30.0,1949.0,1948.1,2.90695]
[1617293104812,30.0,1949.0,1948.1,1.29595]
[1617293106613,30.0,1949.0,1948.4,2.90695]
[1617293107114,30.0,1949.0,1948.0,1.1945]
[1617293107516,31.1,1949.5,1948.0,1.1945]
[1617293107715,30.0,1949.5,1948.0,1.1945]
[1617293107914,30.0,1949.5,1948.0,0.8228]
[1617293108614,30.0,1949.5,1948.3,2.90695]
[1617293109016,30.0,1949.5,1947.7,83.2669]
[1617293109215,32.4264,1949.5,1948.4,20.0]
[1617293109415,32.4264,1949.5,1948.4,19.4421]
[1617293109614,32.4264,1949.5,1947.7,83.2669]
[1617293110015,32.4264,1949.5,1948.5,20.0]
[1617293110415,32.4264,1949.5,1947.7,83.2669]
[1617293110617,2.90695,1947.8,1947.7,83.2669]
[1617293110817,2.90695,1947.8,1947.6,2.90695]
[1617293111017,32.90695,1947.8,1946.8,79.4671]
[1617293111218,32.90695,1947.8,1947.7,20.0]
[1617293111418,34.45855,1947.8,1947.7,18.3027]
[1617293111617,34.45855,1947.8,1946.8,79.4671]
[1617293112019,34.45855,1947.8,1946.9,20.0]
[1617293112621,2.90695,1947.0,1946.9,19.7888]
[1617293112822,4.35475,1947.0,1946.9,19.7888]
[1617293113225,4.35475,1947.0,1946.7,2.90695]
[1617293114023,34.35475,1947.0,1945.8,71.1036]
[1617293114623,31.4478,1947.0,1946.2,2.90695]
[1617293115026,31.4478,1947.0,1945.8,70.46115]
[1617293115223,31.4478,1947.0,1945.0,14.0735]
[1617293115423,91.5873,1947.0,1945.0,12.2626]
[1617293115827,91.5873,1947.0,1945.0,7.7081]
[1617293116026,92.6873,1947.0,1944.3,60.1395]
[1617293116225,14.4586,1946.9,1944.3,60.1395]
[1617293116425,30.0,1946.8,1944.3,56.5776]
[1617293116625,2.90695,1944.4,1944.3,51.9628]
[1617293116825,2.90695,1944.4,1944.1,2.90695]
[1617293117025,2.90695,1944.4,1944.1,1.90365]
[1617293117226,2.90695,1944.4,1944.1,0.36845]
[1617293117826,2.90695,1944.4,1943.5,75.883]
[1617293118026,4.48985,1944.4,1943.5,75.883]
[1617293118627,1.5829,1944.4,1943.8,2.90695]
[1617293119427,1.5829,1944.4,1943.5,75.883]
[1617293119628,1.5829,1944.4,1941.6,2.0]
[1617293119829,1.5829,1944.4,1941.9,80.9279]
[1617293120630,1.5829,1944.4,1943.1,2.90695]
[1617293121031,1.041,1944.5,1943.5,83.8253]
[1617293121229,30.0,1944.6,1943.5,83.8253]
[1617293122635,30.0,1944.6,1943.8,2.90695]
[1617293123036,30.0,1945.5,1943.8,2.90695]
[1617293123236,30.0,1944.6,1943.8,2.90695]
[1617293123436,31.3774,1944.6,1943.8,2.90695]
[1617293123638,31.3774,1944.6,1943.5,83.8253]
[1617293123836,31.3774,1944.6,1941.7,2.0]
[1617293124236,31.3774,1944.6,1941.1,2.0]
[1617293124437,31.3774,1944.6,1941.8,65.0458]
[1617293124637,15.0454,1944.5,1942.8,2.90695]
[1617293124837,30.0,1944.4,1942.8,2.90695]
[1617293125037,29.98,1944.4,1941.8,65.0458]
[1617293125437,1.0349,1944.5,1941.9,30.0]
[1617293125639,14.184,1944.3,1941.9,30.0]
[1617293125838,14.184,1944.3,1941.8,65.0458]
[1617293126241,15.284,1944.3,1941.8,65.0458]
[1617293126640,30.0,1944.2,1942.2,2.90695]
[1617293126841,31.195,1944.2,1942.2,2.90695]
[1617293127442,13.7448,1944.1,1942.2,2.90695]
[1617293127643,30.0,1944.0,1942.2,2.90695]
[1617293127843,13.7448,1944.1,1942.2,2.90695]
[1617293128444,30.0,1944.0,1942.2,2.90695]
[1617293128643,2.90695,1942.3,1941.8,65.0458]
[1617293128844,34.08755,1942.3,1941.7,2.90695]
[1617293129644,34.08755,1942.3,1940.7,70.7299]
[1617293130644,2.90695,1940.8,1939.9,2.90695]
[1617293130843,4.47135,1940.8,1939.9,2.90695]
[1617293132448,1.5644,1940.8,1939.9,2.90695]
[1617293132644,2.90695,1940.8,1940.7,2.90695]
[1617293133046,2.90695,1940.8,1939.7,66.689]
[1617293133849,2.90695,1940.8,1939.7,66.709]
[1617293134247,2.90695,1940.8,1939.7,66.689]
[1617293134448,58.9999,1942.1,1939.7,66.689]
[1617293134647,28.9999,1942.1,1941.0,2.90695]
[1617293135048,28.9999,1942.1,1941.0,0.95885]
[1617293135649,28.9999,1942.1,1940.8,80.245]
[1617293135650,30.0,1942.0,1940.8,80.245]
[1617293135849,30.342,1942.1,1940.8,80.245]
[1617293136651,2.90695,1940.9,1940.8,80.245]
[1617293136851,2.90695,1940.9,1940.7,2.90695]
[1617293137652,2.90695,1940.9,1939.7,72.8363]
[1617293138651,2.90695,1939.8,1939.7,75.74325]
[1617293138851,2.90695,1939.8,1939.7,2.90695]
[1617293142753,2.90695,1939.8,1938.8,2.90695]
[1617293143756,32.90695,1939.8,1938.8,2.90695]
[1617293144359,2.90695,1939.8,1938.8,2.90695]
[1617293144560,30.0,1939.7,1938.8,2.90695]
[1617293144856,2.90695,1938.9,1938.6,67.11835]
[1617293145057,4.30485,1938.9,1938.6,67.11835]
[1617293145861,4.30485,1938.9,1937.9,13.9796]
[1617293146062,4.30485,1938.9,1937.4,74.0738]
[1617293146863,1.3979,1938.9,1937.9,2.90695]
[1617293148365,1.3979,1938.9,1937.4,74.0738]
[1617293148772,2.90695,1937.9,1937.7,2.90695]
[1617293150173,61.1906,1938.9,1937.7,2.90695]
[1617293150371,1.4011,1939.7,1937.7,2.90695]
[1617293150571,1.0433,1939.9,1937.7,4.22695]
[1617293150772,1.2565,1940.1,1938.1,2.90695]
[1617293150972,1.2565,1940.1,1937.4,63.5142]
[1617293151173,2.1275,1940.2,1935.1,30.0]
[1617293151374,78.2416,1939.4,1935.6,78.2416]
[1617293151573,30.0,1939.3,1935.6,108.2416]
[1617293151976,30.0,1939.3,1936.5,16.9099]
[1617293152573,79.2599,1939.4,1936.5,46.9099]
[1617293152774,78.2416,1939.4,1938.4,2.90695]
[1617293152975,14.8558,1940.0,1938.4,2.90695]
[1617293153173,14.8558,1940.0,1938.0,1.3049]
[1617293153574,30.0,1939.9,1938.0,1.3049]
[1617293153774,1.1,1939.9,1938.0,1.3049]
[1617293154174,13.7558,1940.0,1938.0,1.3049]
[1617293154774,13.7558,1940.0,1938.6,2.90695]
[1617293154973,13.7558,1940.0,1938.6,4.21555]
[1617293155574,30.0,1939.9,1938.6,1.3086]
[1617293155775,31.1438,1939.9,1938.6,1.3086]
[1617293155975,31.1438,1939.9,1937.7,58.9136]
[1617293156179,31.1438,1939.9,1936.7,2.0]
[1617293156376,31.1438,1939.9,1936.6,14.8318]
[1617293156377,58.2727,1939.6,1936.6,14.8318]
[1617293156575,30.0,1939.5,1936.6,14.8318]
[1617293156776,31.3473,1939.5,1937.8,2.90695]
[1617293157375,15.0708,1939.4,1936.9,1.391]
[1617293157577,30.0,1939.3,1936.9,1.391]
[1617293158377,59.3008,1939.6,1936.9,1.391]
[1617293158578,13.8577,1939.5,1936.9,1.391]
[1617293158776,13.8577,1939.5,1938.3,2.90695]
[1617293160777,13.8577,1939.5,1938.6,2.90695]
[1617293160979,13.8577,1939.5,1938.6,3.99535]
[1617293161779,78.4871,1940.3,1938.6,3.99535]
[1617293161979,14.4981,1940.9,1938.6,3.99535]
[1617293162181,14.4981,1940.9,1938.7,63.7435]
[1617293162778,14.4981,1940.9,1939.5,2.90695]
[1617293162980,14.4981,1940.9,1939.5,4.09645]
[1617293164381,1.1,1941.9,1939.5,4.09645]
[1617293164781,63.7435,1942.1,1939.5,4.09645]
[1617293164983,2.57640324,1942.6,1940.8,2.90695]
[1617293165182,2.57640324,1942.6,1940.8,4.12365]
[1617293165381,2.1401,1943.3,1940.8,4.12365]
[1617293165582,1.0294,1943.3,1940.8,4.12365]
[1617293166383,1.0294,1943.3,1940.9,20.0]
[1617293166986,1.0294,1943.3,1941.9,2.90695]
[1617293167189,30.0,1943.4,1941.9,4.42235]
[1617293167384,32.0,1943.8,1941.9,4.42235]
[1617293167784,32.0,1943.8,1942.0,20.0]
[1617293168386,2.0,1943.8,1942.0,20.0]
[1617293168786,30.0,1944.2,1942.0,20.0]
[1617293168988,2.90695,1942.3,1942.1,2.90695]
[1617293169188,2.90695,1942.3,1942.0,20.0]
[1617293169587,2.90695,1942.3,1940.8,1.2167]
[1617293169787,2.90695,1942.3,1942.1,20.0]
[1617293170191,2.90695,1942.3,1942.1,1.3793]
[1617293170588,1.0204,1943.9,1942.2,20.0]
[1617293170787,30.0,1944.0,1942.2,20.0]
[1617293170987,30.0,1944.0,1942.5,2.90695]
[1617293171188,30.0,1944.0,1942.5,4.19015]
[1617293171389,30.0,1944.0,1942.5,3.80885]
[1617293171788,30.0,1944.0,1942.6,20.0]
[1617293172990,2.90695,1942.7,1942.6,20.0]
[1617293173390,30.0,1944.0,1942.6,20.0]
[1617293173591,2.0,1944.1,1942.6,21.0639]
[1617293173792,14.4743,1944.4,1942.7,85.0893]
[1617293174394,14.4743,1944.4,1942.8,2.0]
[1617293174590,14.4743,1944.4,1942.8,22.0]
[1617293174792,14.4743,1944.4,1942.9,30.0]
[1617293174991,14.4743,1944.4,1944.0,2.90695]
[1617293175192,14.4743,1944.4,1944.0,4.40205]
[1617293175594,14.4743,1944.4,1944.1,20.0]
[1617293175793,13.9362,1945.3,1944.1,20.0]
[1617293176993,13.9362,1945.3,1944.2,2.90695]
[1617293177393,43.9362,1945.3,1942.8,65.1963]
[1617293177594,45.5057,1945.3,1942.8,65.1963]
[1617293177794,45.5057,1945.3,1944.2,20.0]
[1617293178295,45.5057,1945.3,1942.8,65.1963]
[1617293178495,15.5057,1945.3,1942.8,65.1963]
[1617293178695,30.0,1945.2,1944.3,20.0]
[1617293178894,2.90695,1944.4,1944.3,20.0]
[1617293179094,2.90695,1944.4,1943.7,2.90695]
[1617293179293,2.90695,1944.4,1943.8,85.144]
[1617293179495,13.9362,1945.3,1943.8,86.4371]
[1617293179696,13.9362,1945.3,1943.8,106.4371]
[1617293180896,13.9362,1945.3,1944.8,2.90695]
[1617293181696,13.9362,1945.3,1944.9,20.0]
[1617293182096,13.9362,1945.3,1943.8,86.4371]
[1617293182296,13.9362,1945.3,1942.4,3.2289]
[1617293182297,45.1517,1945.3,1942.4,3.2289]
[1617293182496,45.1517,1945.3,1944.7,20.0]
[1617293182898,2.90695,1944.8,1943.7,2.90695]
[1617293183105,34.27925,1944.8,1943.7,2.90695]
[1617293183302,34.27925,1944.8,1942.5,20.0]
[1617293183902,2.0,1944.7,1942.5,20.0]
[1617293184101,30.0,1944.6,1942.5,20.0]
[1617293184300,2.0,1944.5,1942.5,20.0]
[1617293184502,30.0,1944.4,1942.5,20.0]
[1617293184703,14.5644,1944.3,1942.5,20.0]
[1617293184903,30.0,1944.2,1942.6,2.90695]
[1617293185102,30.0,1944.2,1942.6,0.32345]
[1617293185704,14.5644,1944.3,1942.7,20.0]
[1617293186904,14.5644,1944.3,1944.2,2.90695]
[1617293187106,15.0151,1944.7,1944.2,3.99565]
[1617293187705,15.0151,1944.7,1944.3,20.0]
[1617293189105,15.0151,1944.7,1944.6,2.90695]
[1617293189306,15.0151,1944.7,1944.6,4.30995]
[1617293189905,15.0151,1944.7,1944.6,24.30995]
[1617293190105,15.0151,1944.7,1944.6,20.0]
[1617293191108,17.92205,1944.7,1944.6,20.0]
[1617293191306,47.92205,1944.7,1944.6,20.0]
[1617293192108,17.92205,1944.7,1944.6,20.0]
[1617293193110,17.92205,1944.7,1944.6,21.3849]
[1617293194217,17.92205,1944.7,1944.6,20.0]
[1617293196414,17.92205,1944.7,1944.6,21.2271]
[1617293197013,17.92205,1944.7,1944.6,24.13405]
[1617293197614,31.92205,1944.7,1944.6,24.13405]
[1617293198016,29.0151,1944.7,1944.6,24.13405]
[1617293198215,44.0994,1946.3,1944.6,24.13405]
[1617293198415,14.0994,1946.3,1944.8,74.705]
[1617293199016,14.0994,1946.3,1945.4,2.90695]
[1617293199215,14.0994,1946.3,1945.4,4.46835]
[1617293199415,14.0994,1946.3,1945.4,1.5614]
[1617293199615,44.0994,1946.3,1945.4,1.5614]
[1617293200215,44.0994,1946.3,1945.5,20.0]
[1617293200616,44.0994,1946.3,1944.8,74.705]
[1617293200818,44.0994,1946.3,1942.6,30.0]
[1617293200819,45.6866,1946.3,1942.6,32.0]
[1617293201019,45.6866,1946.3,1944.9,19.6666]
[1617293201419,45.6866,1946.3,1943.6,1.6245]
[1617293201818,45.6866,1946.3,1945.0,20.0]
[1617293202018,44.0994,1946.3,1944.3,1.3985]
[1617293202718,14.0994,1946.3,1944.3,1.3985]
[1617293202917,14.0994,1946.3,1944.6,64.456]
[1617293204028,14.0994,1946.3,1944.7,20.0]
[1617293204221,14.0994,1946.3,1944.7,21.32]
[1617293204625,30.0,1946.2,1944.7,21.32]
[1617293205023,2.90695,1944.8,1944.7,24.22695]
[1617293205220,2.90695,1944.8,1944.7,21.32]
[1617293205427,2.90695,1944.8,1944.7,20.0]
[1617293205620,32.90695,1944.8,1944.7,20.0]
[1617293206222,34.00695,1944.8,1944.7,20.0]
[1617293206423,36.00695,1944.8,1944.7,20.0]
[1617293207525,34.00695,1944.8,1944.7,19.9011]
[1617293207726,32.90695,1944.8,1944.7,19.9011]
[1617293207925,2.90695,1944.8,1944.7,19.9011]
[1617293209726,32.90695,1944.8,1944.7,19.9011]
[1617293210525,34.90695,1944.8,1944.7,19.9011]
[1617293210925,36.00695,1944.8,1944.7,19.9011]
[1617293211727,34.00695,1944.8,1944.7,19.9011]
[1617293212126,2.90695,1944.8,1944.7,19.9011]
[1617293213327,34.90695,1944.8,1944.7,19.9011]
[1617293213526,32.90695,1944.8,1944.7,17.8611]
[1617293213728,34.00695,1944.8,1944.7,17.8611]
[1617293214327,36.00695,1944.8,1944.7,17.0911]
[1617293214826,36.00695,1944.8,1944.7,13.9931]
[1617293215026,36.00695,1944.8,1944.7,13.2295]
[1617293215827,34.00695,1944.8,1944.7,13.2295]
[1617293216227,32.90695,1944.8,1944.7,13.2295]
[1617293216628,34.90695,1944.8,1944.7,13.2295]
[1617293217230,36.00695,1944.8,1944.7,13.2295]
[1617293217530,67.7938,1944.7,1941.7,67.7938]
[1617293217730,67.7938,1944.7,1941.0,17.75371231]
[1617293217731,32.0,1944.6,1941.0,17.75371231]
[1617293217931,75.3139,1943.4,1943.1,20.0]
[1617293218131,32.0,1943.3,1943.1,9.7055]
[1617293218332,48.0597,1943.3,1941.0,13.644]
[1617293218532,46.0597,1943.3,1940.6,34.11796253]
[1617293218732,46.0597,1943.3,1940.6,30.0]
[1617293218931,46.0597,1943.3,1940.7,2.0]
[1617293219131,2.90695,1942.2,1941.9,2.90695]
[1617293219934,2.90695,1942.2,1940.7,32.0]
[1617293221140,2.90695,1942.2,1942.1,2.90695]
[1617293222538,2.90695,1942.2,1940.5,1.486]
[1617293222740,32.90695,1942.2,1940.5,1.486]
[1617293223148,30.0,1942.2,1941.5,2.90695]
[1617293223340,16.1677,1942.1,1939.8,75.3139]
[1617293223539,30.0,1942.0,1939.6,4.12457859]
[1617293223739,61.2294,1941.9,1939.5,4.12512579]
[1617293223939,30.0,1941.8,1939.5,4.12512579]
[1617293224140,30.0,1941.8,1939.5,30.0]
[1617293224339,30.0,1941.8,1939.6,2.0]
[1617293224542,30.0,1941.8,1939.6,2.34282449]
[1617293224740,30.0,1941.8,1939.6,0.34282449]
[1617293225140,2.90695,1940.1,1939.9,2.90695]
[1617293226144,1.0253,1940.9,1939.9,2.90695]
[1617293226342,31.1,1941.6,1939.9,2.90695]
[1617293226541,14.6857,1941.8,1939.9,4.40395]
[1617293226953,14.6857,1941.8,1939.9,34.40395]
[1617293227146,14.6857,1941.8,1941.5,2.90695]
[1617293227351,14.6857,1941.8,1941.5,4.41405]
[1617293229154,12.90695,1942.1,1941.7,2.90695]
[1617293229747,10.0,1942.1,1941.7,2.90695]
[1617293231346,12.90695,1942.1,1942.0,2.90695]
[1617293231547,12.90695,1942.1,1942.0,4.46675]
[1617293231746,12.90695,1942.1,1942.0,1.5598]
[1617293232549,12.90695,1942.1,1940.9,65.4042]
[1617293232746,42.90695,1942.1,1940.1,30.0]
[1617293233146,2.90695,1941.3,1941.2,2.90695]
[1617293233546,10.0,1942.1,1941.2,2.90695]
[1617293233946,40.0,1942.1,1941.2,2.90695]
[1617293234746,40.0,1942.1,1939.8,63.0612]
[1617293234947,42.564,1942.1,1939.8,63.0612]
[1617293235346,2.0,1942.0,1940.6,2.90695]
[1617293235546,30.0,1941.9,1940.6,2.90695]
[1617293235746,2.0,1941.8,1940.6,2.90695]
[1617293235947,30.0,1941.7,1940.6,2.90695]
[1617293236147,2.0,1941.6,1940.6,2.90695]
[1617293236349,32.0,1941.6,1939.8,63.0612]
[1617293236548,30.0,1941.6,1939.8,63.0612]
[1617293237150,30.0,1941.6,1939.8,65.0612]
[1617293237750,31.056,1941.6,1939.8,63.0612]
[1617293238752,31.056,1941.6,1939.3,30.0]
[1617293238952,62.0712,1941.4,1939.3,30.0]
[1617293239352,63.1712,1941.4,1940.1,2.90695]
[1617293239551,63.1712,1941.4,1939.3,30.0]
[1617293239751,14.5925,1941.3,1939.3,30.0]
[1617293239952,15.6925,1941.3,1939.3,30.0]
[1617293240551,30.0,1941.2,1938.6,62.0712]
[1617293240751,32.2938,1941.2,1938.6,62.0712]
[1617293241151,2.0,1941.1,1938.6,62.0712]
[1617293241351,30.0,1941.0,1939.6,2.90695]
[1617293241551,2.0,1940.9,1938.6,62.0712]
[1617293241753,30.0,1940.8,1938.0,2.0]
[1617293241953,58.2357,1940.2,1937.8,4.13752777]
[1617293242154,30.0,1940.1,1937.8,4.13752777]
[1617293242353,30.0,1940.1,1937.6,4.14103252]
[1617293242552,59.3568,1940.2,1937.6,4.14103252]
[1617293242755,59.3568,1940.2,1937.7,30.0]
[1617293243152,14.7849,1940.7,1937.7,30.0]
[1617293243353,14.7849,1940.7,1939.6,2.90695]
[1617293243954,13.6948,1940.8,1939.6,4.10465]
[1617293244360,13.6948,1940.8,1939.8,63.9645]
[1617293245364,13.6948,1940.8,1940.2,2.90695]
[1617293247265,16.60175,1940.8,1940.7,2.90695]
[1617293247464,16.60175,1940.8,1939.8,63.9645]
[1617293247465,16.60175,1940.8,1940.2,1.0819]
[1617293247664,16.60175,1940.8,1940.6,1.6453]
[1617293248968,16.60175,1940.8,1939.8,63.9645]
[1617293249168,13.6948,1940.8,1939.8,63.9645]
[1617293249367,13.6948,1940.8,1940.6,2.90695]
[1617293250571,13.6948,1940.8,1939.8,63.9645]
[1617293251270,2.90695,1940.3,1940.0,2.90695]
[1617293251471,1.0448,1940.3,1940.0,4.32405]
[1617293251672,13.6948,1940.8,1940.0,4.32405]
[1617293252877,10.0,1942.1,1940.5,78.2669]
[1617293253073,10.0,1942.1,1940.5,79.9145]
[1617293253273,10.0,1942.1,1941.6,2.90695]
[1617293253472,10.0,1942.1,1941.6,4.14795]
[1617293253673,10.0,1942.1,1941.6,1.241]
[1617293253873,10.0,1942.1,1941.7,20.0]
[1617293255475,2.90695,1941.8,1941.7,20.0]
[1617293255674,32.90695,1941.8,1941.7,20.0]
[1617293256075,2.90695,1941.8,1941.7,20.0]
[1617293256274,2.90695,1941.8,1941.7,19.4448]
[1617293264383,2.90695,1941.8,1941.7,18.4287]
[1617293265583,32.90695,1941.8,1941.7,18.4287]
[1617293265983,2.90695,1941.8,1941.7,18.4287]
[1617293267188,2.90695,1941.8,1941.7,17.96]
[1617293268191,2.90695,1941.8,1941.7,17.234]
[1617293268393,2.90695,1941.8,1941.7,16.4607]
[1617293269794,2.90695,1941.8,1941.7,13.3999]
[1617293269995,2.90695,1941.8,1941.7,12.943]
[1617293270195,2.90695,1941.8,1941.7,11.9221]
[1617293271496,2.90695,1941.8,1940.3,2.90695]
[1617293271696,32.0,1941.7,1940.3,2.90695]
[1617293271896,32.0,1941.7,1940.3,2.84005]
[1617293272096,32.0,1941.7,1939.9,65.3924]
[1617293272298,31.1,1941.7,1939.9,65.3924]
[1617293272698,2.0,1941.6,1939.9,65.3924]
[1617293272897,33.1,1941.6,1939.9,65.3924]
[1617293273297,31.1,1941.6,1939.9,65.3924]
[1617293273699,30.0,1941.6,1939.9,65.3924]
[1617293274402,30.0,1941.6,1940.0,2.0]
[1617293274603,30.0,1941.6,1940.0,3.046]
[1617293275002,1.1,1941.8,1940.0,3.046]
[1617293275403,1.1,1941.8,1941.0,2.90695]
[1617293275603,1.1,1941.8,1941.0,4.32245]
[1617293276005,1.1,1941.8,1941.0,1.4155]
[1617293277407,1.1,1941.8,1941.2,2.90695]
[1617293277706,1.1,1941.8,1941.0,1.4155]
[1617293278711,1.1,1941.8,1941.1,20.0]
[1617293279510,1.1,1941.8,1941.2,2.90695]
[1617293279709,1.1,1941.8,1941.1,20.0]
[1617293279910,1.1,1941.8,1941.0,1.4155]
[1617293280110,1.1,1941.8,1940.7,73.5607]
[1617293280311,1.1,1941.8,1941.1,20.0]
[1617293280711,1.1,1941.8,1941.0,1.5561]
[1617293281212,1.1,1941.8,1941.2,20.0]
[1617293281611,2.90695,1941.3,1941.2,20.0]
[1617293282611,2.90695,1941.3,1941.2,19.8307]
[1617293283412,32.90695,1941.3,1941.2,19.8307]
[1617293284419,32.90695,1941.3,1941.2,18.8307]
[1617293285319,2.90695,1941.3,1941.2,18.8307]
[1617293285719,2.90695,1941.3,1940.7,73.5607]
[1617293287522,1.0353,1941.6,1941.1,2.90695]
[1617293287724,1.1,1941.8,1941.1,2.90695]
[1617293288221,1.1,1941.8,1940.7,73.5607]
[1617293288622,1.1,1941.8,1940.8,20.0]
[1617293288823,2.7636,1941.8,1940.8,20.0]
[1617293289221,30.0,1941.7,1940.8,20.0]
[1617293289622,2.90695,1940.9,1940.8,20.0]
[1617293293627,2.90695,1941.1,1940.8,22.90695]
[1617293295626,2.90695,1941.1,1941.0,2.90695]
[1617293296428,2.90695,1941.1,1941.0,22.90695]
[1617293299334,1.0244,1941.3,1941.0,22.90695]
[1617293299533,1.1,1941.7,1941.0,22.90695]
[1617293299737,77.5541,1941.7,1941.2,2.90695]
[1617293300535,77.5541,1941.7,1941.3,20.0]
[1617293300734,107.5541,1941.7,1941.3,18.9735]
[1617293301335,31.1,1941.7,1941.3,18.9735]
[1617293301742,2.90695,1941.4,1941.3,18.9735]
[1617293301937,5.39795,1941.4,1941.3,18.9735]
[1617293302136,5.39795,1941.4,1941.3,18.6457]
[1617293302737,35.39795,1941.4,1941.3,18.5452]
[1617293302937,35.39795,1941.4,1941.3,15.9819]
[1617293303137,5.39795,1941.4,1941.3,10.3862]
[1617293303339,3.92505,1941.4,1941.3,9.6188]
[1617293304843,2.90695,1941.4,1941.3,9.6188]
[1617293305645,2.90695,1941.6,1941.3,9.6188]
[1617293305843,2.90695,1941.6,1941.3,12.6617]
[1617293306044,14.0345,1941.9,1941.6,72.7194]
[1617293306446,10.0,1942.1,1941.6,72.7194]
[1617293306646,1.14,1942.1,1941.6,72.7194]
[1617293306846,0.4045,1942.1,1941.6,72.7194]
[1617293307048,0.4045,1942.1,1941.7,20.0]
[1617293307246,0.4045,1942.1,1941.7,21.2904]
[1617293307647,0.4045,1942.1,1942.0,2.90695]
[1617293308449,0.4045,1942.1,1942.0,22.90695]
[1617293310551,0.0001,1942.1,1942.0,22.90695]
[1617293310750,15.1233,1943.0,1942.0,22.90695]
[1617293311650,15.1233,1943.0,1942.7,2.90695]
[1617293311851,15.1233,1943.0,1942.7,3.95585]
[1617293312455,15.1233,1943.0,1942.8,20.0]
[1617293313657,2.90695,1942.9,1942.8,20.0]
[1617293314857,2.90695,1942.9,1942.8,9.0]
[1617293315259,2.90695,1942.9,1942.8,8.9089]
[1617293315957,2.90695,1942.9,1942.8,8.0727]
[1617293316358,2.90695,1942.9,1942.8,7.7513]
[1617293317558,2.90695,1942.9,1942.8,7.2349]
[1617293317760,2.90695,1942.9,1942.8,10.14185]
[1617293318961,2.90695,1942.9,1942.8,7.2349]
[1617293320863,2.90695,1942.9,1942.8,6.7224]
[1617293326168,2.90695,1942.9,1942.8,71.1531]
[1617293327470,2.90695,1942.9,1942.8,70.7759]
[1617293328672,15.1233,1943.0,1942.8,70.7759]
[1617293329070,14.0,1942.9,1942.8,70.7759]
[1617293331477,14.0,1942.9,1942.8,102.7759]
[1617293332480,14.0,1942.9,1942.8,38.3452]
[1617293332680,15.1233,1943.0,1942.8,38.3452]
[1617293333281,7.7141,1943.0,1942.8,38.3452]
[1617293333880,2.90695,1944.2,1942.9,2.90695]
[1617293334080,2.90695,1944.2,1943.0,32.0]
[1617293334281,2.90695,1944.2,1943.0,33.0135]
[1617293334681,2.90695,1944.2,1943.1,20.0]
[1617293334880,2.90695,1944.2,1943.5,67.0768]
[1617293335083,2.90695,1944.2,1943.5,68.3477]
[1617293335683,2.90695,1944.2,1943.6,20.0]
[1617293335882,2.90695,1944.2,1944.1,2.90695]
[1617293336083,2.90695,1944.2,1944.1,4.00535]
[1617293336684,2.90695,1944.2,1944.1,24.00535]
[1617293337098,1.0305,1944.5,1944.2,59.8006]
[1617293337296,14.33,1945.1,1944.2,59.8006]
[1617293337890,2.90695,1944.6,1944.4,2.90695]
[1617293338686,2.90695,1944.6,1944.5,20.0]
[1617293339684,2.90695,1944.6,1944.5,21.1266]
[1617293340486,1.70415,1944.6,1944.5,21.1266]
[1617293341087,1.70415,1944.6,1944.5,20.0]
[1617293341687,1.70415,1944.6,1944.5,19.1645]
[1617293341888,85.44765,1944.6,1944.5,19.1645]
[1617293342287,85.44765,1944.6,1944.5,18.1366]
[1617293342488,115.44765,1944.6,1944.5,18.1366]
[1617293342688,117.44765,1944.6,1944.5,17.1081]
[1617293342889,115.44765,1944.6,1944.5,17.1081]
[1617293343989,115.44765,1944.6,1944.5,16.0781]
[1617293344189,115.44765,1944.6,1944.5,13.8881]
[1617293344388,115.44765,1944.6,1944.5,11.9871]
[1617293344590,115.44765,1944.6,1944.5,8.8946]
[1617293344992,117.00135,1944.6,1944.5,8.8946]
[1617293345392,117.00135,1944.6,1944.5,7.4414]
[1617293345791,117.00135,1944.6,1944.5,7.2854]
[1617293345992,117.00135,1944.6,1944.5,6.5182]
[1617293346193,31.70415,1944.6,1944.5,6.5182]
[1617293346393,1.70415,1944.6,1944.5,6.5182]
[1617293347797,15.0372,1944.8,1944.5,6.5182]
[1617293347994,17.94415,1944.8,1944.7,2.90695]
[1617293348794,17.94415,1944.8,1944.7,22.90695]
[1617293350193,17.94415,1944.8,1944.7,22.84025]
[1617293350894,17.94415,1944.8,1944.7,20.55005]
[1617293351800,17.94415,1944.8,1944.7,19.15265]
[1617293351995,47.94415,1944.8,1944.7,4.15265]